fUST/lending_fUST_20241229
["ID","MTS","AMOUNT","RATE_DAILY","PERIOD"]
[347048119,1735483839687,-500.0,9.23e-05,2]
[347048120,1735483839697,-515.90307424,9.23e-05,2]
[347048121,1735483839706,-500.0,9.23e-05,2]
[347048122,1735483839716,-500.0,9.23e-05,2]
[347048123,1735483839725,-585.99066766,9.23e-05,2]
[347048124,1735483839736,-500.0,9.23e-05,2]
[347048125,1735483839746,-500.0,9.23e-05,2]
[347048126,1735483839756,-505.64547168,9.23e-05,2]
[347048127,1735483839765,-500.0,9.23e-05,2]
[347048128,1735483839775,-534.74769619,9.23e-05,2]
[347048129,1735483839784,-500.0,9.23e-05,2]
[347048130,1735483839793,-517.78375093,9.23e-05,2]
[347048131,1735483839803,-500.0,9.23e-05,2]
[347048132,1735483839813,-500.0,9.23e-05,2]
[347048133,1735483839822,-500.0,9.23e-05,2]
[347048134,1735483839833,-500.0,9.23e-05,2]
[347048135,1735483839843,-500.0,9.23e-05,2]
[347048136,1735483839852,-500.0,9.23e-05,2]
[347048137,1735483839862,-500.0,9.23e-05,2]
[347048139,1735483839871,-500.0,9.23e-05,2]
[347048140,1735483839881,-502.78406132,9.23e-05,2]
[347048142,1735483839891,-428.0674846,9.23e-05,2]
[347048143,1735483839900,-188.0,9.23e-05,2]
[347048144,1735483839910,-841.36,9.23e-05,2]
[347048146,1735483839919,-500.0,9.23e-05,2]
[347048147,1735483839929,-500.0,9.23e-05,2]
[347048150,1735483839939,-500.0,9.23e-05,2]
[347048151,1735483839948,-500.0,9.23e-05,2]
[347048153,1735483839958,-500.0,9.23e-05,2]
[347048154,1735483839967,-500.0,9.23e-05,2]
[347048156,1735483839978,-500.0,9.23e-05,2]
[347048157,1735483839987,-500.0,9.23e-05,2]
[347048158,1735483839996,-500.0,9.23e-05,2]
[347048159,1735483840006,-500.0,9.23e-05,2]
[347048160,1735483840015,-500.0,9.23e-05,2]
[347048161,1735483840025,-500.0,9.23e-05,2]
[347048162,1735483840034,-500.0,9.23e-05,2]
[347048163,1735483840043,-500.0,9.23e-05,2]
[347048164,1735483840052,-500.0,9.23e-05,2]
[347048165,1735483840062,-500.0,9.23e-05,2]
[347048166,1735483840073,-500.90389329,9.23e-05,2]
[347048167,1735483840083,-500.0,9.23e-05,2]
[347048168,1735483840093,-500.0,9.23e-05,2]
[347048169,1735483840102,-155.96069788,9.23e-05,2]
[347048170,1735483840112,-500.0,9.23e-05,2]
[347048171,1735483840122,-500.0,9.23e-05,2]
[347048172,1735483840132,-500.0,9.23e-05,2]
[347048173,1735483840141,-500.0,9.23e-05,2]
[347048174,1735483840151,-500.0,9.23e-05,2]
[347048175,1735483840161,-500.0,9.23e-05,2]
[347048176,1735483840170,-500.0,9.23e-05,2]
[347048177,1735483840180,-501.8621964,9.23e-05,2]
[347048179,1735483840190,-500.0,9.23e-05,2]
[347048181,1735483840200,-500.0,9.23e-05,2]
[347048183,1735483840209,-500.0,9.23e-05,2]
[347048185,1735483840219,-250.39635654,9.23e-05,2]
[347048187,1735483840229,-500.0,9.23e-05,2]
[347048189,1735483840239,-500.0,9.23e-05,2]
[347048191,1735483840249,-500.0,9.23e-05,2]
[347048193,1735483840258,-500.0,9.23e-05,2]
[347048195,1735483840268,-500.0,9.23e-05,2]
[347048197,1735483840278,-500.0,9.23e-05,2]
[347048199,1735483840288,-500.0,9.23e-05,2]
[347048200,1735483840298,-500.0,9.23e-05,2]
[347048201,1735483840307,-503.29604193,9.23e-05,2]
[347048202,1735483840317,-500.0,9.231e-05,2]
[347048203,1735483840327,-500.0,9.231e-05,2]
[347048204,1735483840336,-755.48,9.231e-05,2]
[347048205,1735483840345,-500.0,9.231e-05,2]
[347048206,1735483840355,-500.0,9.231e-05,2]
[347048207,1735483840367,-642.14,9.231e-05,2]
[347048208,1735483840376,-500.83199224,9.231e-05,2]
[347048209,1735483840386,-500.0,9.231e-05,2]
[347048210,1735483840395,-500.0,9.231e-05,2]
[347048211,1735483840404,-500.0,9.231e-05,2]
[347048212,1735483840414,-500.0,9.231e-05,2]
[347048213,1735483840423,-500.0,9.231e-05,2]
[347048214,1735483840433,-500.0,9.231e-05,2]
[347048215,1735483840442,-500.0,9.231e-05,2]
[347048216,1735483840451,-682.73,9.231e-05,2]
[347048217,1735483840461,-500.0,9.231e-05,2]
[347048218,1735483840470,-500.0,9.231e-05,2]
[347048219,1735483840481,-500.0,9.231e-05,2]
[347048220,1735483840491,-500.0,9.231e-05,2]
[347048221,1735483840500,-844.38,9.231e-05,2]
[347048222,1735483840510,-500.0,9.231e-05,2]
[347048223,1735483840519,-500.0,9.231e-05,2]
[347048224,1735483840529,-500.0,9.231e-05,2]
[347048225,1735483840538,-500.0,9.231e-05,2]
[347048226,1735483840548,-500.0,9.231e-05,2]
[347048227,1735483840557,-500.0,9.231e-05,2]
[347048228,1735483840567,-500.0,9.231e-05,2]
[347048229,1735483840645,-500.0,9.231e-05,2]
[347048230,1735483840656,-844.38,9.233e-05,2]
[347048231,1735483840666,-500.0,9.234e-05,2]
[347048232,1735483840676,-500.0,9.234e-05,2]
[347048233,1735483840686,-500.0,9.234e-05,2]
[347048234,1735483840696,-500.0,9.234e-05,2]
[347048235,1735483840705,-500.0,9.234e-05,2]
[347048236,1735483840715,-500.0,9.234e-05,2]
[347048237,1735483840724,-500.0,9.234e-05,2]
[347048238,1735483840736,-504.48432849,9.234e-05,2]
[347048239,1735483840746,-551.29,9.234e-05,2]
[347048240,1735483840756,-500.0,9.234e-05,2]
[347048241,1735483840765,-500.0,9.234e-05,2]
[347048242,1735483840775,-504.00957442,9.234e-05,2]
[347048243,1735483840784,-504.29721183,9.234e-05,2]
[347048244,1735483840793,-500.0,9.234e-05,2]
[347048245,1735483840804,-502.39351084,9.234e-05,2]
[347048246,1735483840813,-500.0,9.234e-05,2]
[347048247,1735483840823,-500.0,9.234e-05,2]
[347048248,1735483840833,-500.0,9.234e-05,2]
[347048249,1735483840843,-500.0,9.234e-05,2]
[347048250,1735483840853,-844.38,9.235e-05,2]
[347048251,1735483840863,-500.0,9.235e-05,2]
[347048252,1735483840873,-500.0,9.236e-05,2]
[347048253,1735483840883,-500.0,9.236e-05,2]
[347048254,1735483840893,-500.0,9.236e-05,2]
[347048255,1735483840903,-3602.44,9.236e-05,2]
[347048256,1735483840912,-844.38,9.237e-05,2]
[347048257,1735483840922,-731.64,9.238e-05,2]
[347048258,1735483840931,-500.0,9.238e-05,2]
[347048259,1735483840941,-500.0,9.238e-05,2]
[347048260,1735483840950,-844.38,9.239e-05,2]
[347048261,1735483840959,-844.38,9.239e-05,2]
[347048262,1735483840968,-844.38,9.239e-05,2]
[347048263,1735483840979,-844.38,9.239e-05,2]
[347048264,1735483840988,-844.38,9.239e-05,2]
[347048265,1735483840998,-844.38,9.239e-05,2]
[347048266,1735483841007,-500.0,9.239e-05,2]
[347048267,1735483841017,-844.38,9.24e-05,2]
[347048268,1735483841026,-4484.2,9.24e-05,2]
[347048269,1735483841035,-500.0,9.47e-05,2]
[347048270,1735483841044,-501.60469412,9.47e-05,2]
[347048271,1735483841054,-500.0,9.47e-05,2]
[347048272,1735483841063,-503.16550677,9.47e-05,2]
[347048273,1735483841073,-500.0,9.47e-05,2]
[347048274,1735483841082,-500.0,9.47e-05,2]
[347048275,1735483841091,-502.20252071,9.47e-05,2]
[347048276,1735483841101,-500.0,9.47e-05,2]
[347048277,1735483841111,-207.03241004,9.47e-05,2]
[347048278,1735483841120,-501.68089564,9.47e-05,2]
[347048279,1735483841129,-500.0,9.47e-05,2]
[347048280,1735483841139,-500.0,9.47e-05,2]
[347048281,1735483841148,-500.0,9.47e-05,2]
[347048282,1735483841158,-500.0,9.47e-05,2]
[347048283,1735483841167,-502.51267261,9.47e-05,2]
[347048284,1735483841176,-505.91265301,9.47e-05,2]
[347048285,1735483841185,-500.0,9.47e-05,2]
[347048286,1735483841194,-501.46942713,9.47e-05,2]
[347048287,1735483841203,-541.37246268,9.47e-05,2]
[347048288,1735483841213,-501.85308814,9.47e-05,2]
[347048289,1735483841222,-503.0190913,9.47e-05,2]
[347048290,1735483841236,-503.55167954,9.47e-05,2]
[347048291,1735483841246,-502.7271545,9.47e-05,2]
[347048292,1735483841255,-502.13607603,9.47e-05,2]
[347048293,1735483841265,-501.27969122,9.47e-05,2]
[347048294,1735483841274,-502.3050271,9.47e-05,2]
[347048295,1735483841283,-498.0045934,9.47e-05,2]
[347048296,1735483841292,-500.0,9.47e-05,2]
[347048297,1735483841302,-502.43149866,9.47e-05,2]
[347048298,1735483841311,-507.00295258,9.47e-05,2]
[347048299,1735483841321,-500.0,9.47e-05,2]
[347048300,1735483841330,-500.0,9.47e-05,2]
[347048301,1735483841339,-500.0,9.47e-05,2]
[347048302,1735483841348,-503.84084193,9.47e-05,2]
[347048303,1735483841360,-502.58385214,9.47e-05,2]
[347048304,1735483841371,-511.56138346,9.47e-05,2]
[347048305,1735483841380,-503.68849973,9.47e-05,2]
[347048306,1735483841389,-243.93811004,9.47e-05,2]
[347048307,1735483841399,-646.33536975,9.47e-05,2]
[347048308,1735483841409,-508.80631579,9.47e-05,2]
[347048309,1735483841419,-549.59,9.47e-05,2]
[347048310,1735483841428,-500.0,9.47e-05,2]
[347048311,1735483841438,-501.37393439,9.47e-05,2]
[347048312,1735483841448,-500.0,9.47e-05,2]
[347048313,1735483841457,-576.44797849,9.47e-05,2]
[347048314,1735483841466,-500.0,9.47e-05,2]
[347048315,1735483841476,-501.79956978,9.47e-05,2]
[347048316,1735483841486,-500.0,9.47e-05,2]
[347048317,1735483841495,-500.0,9.47e-05,2]
[347048318,1735483841504,-501.6188141,9.47e-05,2]
[347048319,1735483841514,-506.98882798,9.47e-05,2]
[347048320,1735483841524,-500.0,9.47e-05,2]
[347048321,1735483841533,-508.04169993,9.47e-05,2]
[347048322,1735483841542,-557.96897745,9.47e-05,2]
[347048323,1735483841551,-501.6674969,9.47e-05,2]
[347048324,1735483841561,-501.98624257,9.47e-05,2]
[347048325,1735483841570,-500.0,9.47e-05,2]
[347048326,1735483841580,-507.7117637,9.47e-05,2]
[347048327,1735483841589,-500.0,9.47e-05,2]
[347048328,1735483841599,-505.96567546,9.47e-05,2]
[347048329,1735483841608,-502.3542188,9.47e-05,2]
[347048330,1735483841618,-500.91182221,9.47e-05,2]
[347048331,1735483841628,-502.75130267,9.47e-05,2]
[347048332,1735483841637,-501.88171813,9.47e-05,2]
[347048333,1735483841647,-500.0,9.47e-05,2]
[347048334,1735483841656,-504.50263453,9.47e-05,2]
[347048335,1735483841666,-506.41072108,9.47e-05,2]
[347048336,1735483841675,-500.0,9.47e-05,2]
[347048337,1735483841684,-500.0,9.47e-05,2]
[347048338,1735483841694,-504.38031327,9.47e-05,2]
[347048339,1735483841703,-500.0,9.47e-05,2]
[347048340,1735483841713,-500.0,9.47e-05,2]
[347048341,1735483841722,-574.12421813,9.47e-05,2]
[347048342,1735483841732,-500.0,9.47e-05,2]
[347048343,1735483841741,-500.0,9.47e-05,2]
[347048344,1735483841751,-500.97969093,9.47e-05,2]
[347048345,1735483841760,-500.0,9.47e-05,2]
[347048346,1735483841769,-500.0,9.47e-05,2]
[347048347,1735483841778,-513.54300777,9.47e-05,2]
[347048348,1735483841788,-500.0,9.47e-05,2]
[347048349,1735483841797,-503.64666205,9.47e-05,2]
[347048350,1735483841807,-500.0,9.47e-05,2]
[347048351,1735483841816,-500.0,9.47e-05,2]
[347048352,1735483841826,-1843.64,9.47e-05,2]
[347048353,1735483841835,-502.10161885,9.47e-05,2]
[347048354,1735483841845,-500.0,9.47e-05,2]
[347048355,1735483841854,-500.0,9.47e-05,2]
[347048356,1735483841863,-500.0,9.47e-05,2]
[347048357,1735483841873,-500.0,9.47e-05,2]
[347048358,1735483841883,-521.13378418,9.473e-05,2]
[347048359,1735483841893,-510.74079421,9.473e-05,2]
[347048360,1735483841903,-500.0,9.473e-05,2]
[347048361,1735483841912,-500.0,9.473e-05,2]
[347048362,1735483841922,-500.0,9.473e-05,2]
[347048363,1735483841931,-500.0,9.473e-05,2]
[347048364,1735483841940,-500.0,9.473e-05,2]
[347048365,1735483841950,-500.0,9.473e-05,2]
[347048366,1735483841959,-500.0,9.473e-05,2]
[347048367,1735483841968,-505.16274489,9.473e-05,2]
[347048368,1735483841979,-500.0,9.473e-05,2]
[347048369,1735483841988,-500.0,9.473e-05,2]
[347048370,1735483841998,-500.0,9.473e-05,2]
[347048371,1735483842007,-500.0,9.473e-05,2]
[347048372,1735483842017,-500.0,9.473e-05,2]
[347048373,1735483842026,-501.6776997,9.473e-05,2]
[347048374,1735483842035,-500.0,9.483e-05,2]
[347048375,1735483842044,-500.0,9.483e-05,2]
[347048376,1735483842053,-484.58326725,9.483e-05,2]
[347048377,1735483842064,-500.0,9.502e-05,2]
[347048378,1735483842136,-500.0,9.502e-05,2]
[347048379,1735483842146,-500.0,9.502e-05,2]
[347048380,1735483842155,-634.39,9.502e-05,2]
[347048381,1735483842164,-500.0,9.502e-05,2]
[347048382,1735483842174,-500.0,9.502e-05,2]
[347048383,1735483842184,-500.0,9.502e-05,2]
[347048384,1735483842193,-500.0,9.502e-05,2]
[347048385,1735483842204,-502.05589239,9.502e-05,2]
[347048386,1735483842213,-500.0,9.502e-05,2]
[347048387,1735483842222,-500.0,9.502e-05,2]
[347048388,1735483842232,-500.0,9.502e-05,2]
[347048389,1735483842241,-500.0,9.502e-05,2]
[347048390,1735483842251,-516.67,9.502e-05,2]
[347048391,1735483842261,-500.0,9.502e-05,2]
[347048392,1735483842270,-500.0,9.502e-05,2]
[347048393,1735483842279,-500.0,9.502e-05,2]
[347048394,1735483842288,-570.79,9.502e-05,2]
[347048395,1735483842298,-500.0,9.502e-05,2]
[347048396,1735483842307,-270.96000238,9.502e-05,2]
[347048397,1735483842316,-721.19,9.502e-05,2]
[347048398,1735483842325,-500.0,9.502e-05,2]
[347048399,1735483842335,-500.0,9.502e-05,2]
[347048400,1735483842344,-500.0,9.502e-05,2]
[347048401,1735483842355,-500.0,9.502e-05,2]
[347048402,1735483842368,-500.0,9.502e-05,2]
[347048403,1735483842377,-569.41,9.502e-05,2]
[347048404,1735483842386,-500.0,9.502e-05,2]
[347048405,1735483842395,-500.0,9.502e-05,2]
[347048406,1735483842405,-503.91789391,9.502e-05,2]
[347048407,1735483842414,-500.0,9.502e-05,2]
[347048408,1735483842423,-868.39,9.502e-05,2]
[347048409,1735483842434,-536.55183484,9.502e-05,2]
[347048410,1735483842444,-500.0,9.502e-05,2]
[347048411,1735483842455,-500.0,9.502e-05,2]
[347048412,1735483842464,-1206.92,9.502e-05,2]
[347048413,1735483842473,-500.0,9.502e-05,2]
[347048414,1735483842482,-455.26107887,9.502e-05,2]
[347048415,1735483842491,-503.24209576,9.502e-05,2]
[347048416,1735483842501,-506.88712566,9.502e-05,2]
[347048417,1735483842512,-500.0,9.502e-05,2]
[347048418,1735483842521,-628.52,9.502e-05,2]
[347048419,1735483842531,-500.0,9.502e-05,2]
[347048420,1735483842540,-884.34,9.502e-05,2]
[347048421,1735483842549,-1037.33,9.502e-05,2]
[347048422,1735483842559,-1062.59,9.502e-05,2]
[347048423,1735483842568,-500.0,9.502e-05,2]
[347048424,1735483842577,-922.3,9.502e-05,2]
[347048425,1735483842587,-500.0,9.502e-05,2]
[347048426,1735483842596,-503.48894421,9.502e-05,2]
[347048427,1735483842607,-500.0,9.502e-05,2]
[347048428,1735483842616,-500.0,9.502e-05,2]
[347048429,1735483842625,-878.79,9.502e-05,2]
[347048430,1735483842635,-500.0,9.502e-05,2]
[347048431,1735483842644,-500.0,9.503e-05,2]
[347048432,1735483842653,-500.0,9.503e-05,2]
[347048433,1735483842665,-500.0,9.503e-05,2]
[347048434,1735483842675,-500.0,9.503e-05,2]
[347048435,1735483842684,-500.0,9.503e-05,2]
[347048437,1735483842694,-634.43,9.503e-05,2]
[347048438,1735483842703,-575.55,9.503e-05,2]
[347048440,1735483842713,-500.0,9.503e-05,2]
[347048442,1735483842722,-500.0,9.503e-05,2]
[347048444,1735483842734,-500.0,9.503e-05,2]
[347048446,1735483842743,-501.70733011,9.503e-05,2]
[347048447,1735483842753,-500.0,9.503e-05,2]
[347048448,1735483842763,-500.0,9.503e-05,2]
[347048449,1735483842772,-500.0,9.503e-05,2]
[347048450,1735483842781,-500.64,9.503e-05,2]
[347048451,1735483842790,-500.0,9.503e-05,2]
[347048452,1735483842799,-17293.43,9.503e-05,2]
[347048453,1735483842809,-2067.97,9.503e-05,2]
[347048454,1735483842819,-663.65,9.503e-05,2]
[347048455,1735483842828,-374.78555557,9.503e-05,2]
[347048462,1735483842961,-125.21444443,9.503e-05,2]
[347048464,1735483842970,-647.50490646,9.503e-05,2]
[347048467,1735483842981,-500.0,9.503e-05,2]
[347048470,1735483842990,-500.0,9.503e-05,2]
[347048472,1735483842999,-500.0,9.503e-05,2]
[347048474,1735483843010,-1391.05,9.503e-05,2]
[347048476,1735483843019,-500.0,9.503e-05,2]
[347048478,1735483843029,-500.0,9.504e-05,2]
[347048480,1735483843038,-500.0,9.504e-05,2]
[347048482,1735483843047,-500.0,9.504e-05,2]
[347048483,1735483843056,-610.04621601,9.504e-05,2]
[347048484,1735483843065,-214.9243021,9.504e-05,2]
[347048485,1735483843075,-500.0,9.504e-05,2]
[347048487,1735483843084,-506.4048208,9.504e-05,2]
[347048489,1735483843093,-500.0,9.504e-05,2]
[347048491,1735483843103,-500.0,9.504e-05,2]
[347048493,1735483843112,-500.0,9.504e-05,2]
[347048495,1735483843122,-428.86841015,9.504e-05,2]
[347048497,1735483843131,-500.0,9.504e-05,2]
[347048499,1735483843140,-500.0,9.504e-05,2]
[347048501,1735483843151,-500.0,9.504e-05,2]
[347048503,1735483843160,-500.0,9.504e-05,2]
[347048505,1735483843170,-500.0,9.504e-05,2]
[347048507,1735483843179,-500.0,9.504e-05,2]
[347048509,1735483843189,-500.0,9.504e-05,2]
[347048511,1735483843198,-500.0,9.504e-05,2]
[347048512,1735483843208,-500.0,9.504e-05,2]
[347048513,1735483843217,-503.62762268,9.504e-05,2]
[347048514,1735483843226,-500.0,9.504e-05,2]
[347048516,1735483843235,-500.0,9.504e-05,2]
[347048518,1735483843245,-509.17071523,9.504e-05,2]
[347048520,1735483843255,-503.19231708,9.504e-05,2]
[347048522,1735483843264,-500.0,9.504e-05,2]
[347048524,1735483843273,-503.9381381,9.504e-05,2]
[347048533,1735483843353,-500.0,9.504e-05,2]
[347048535,1735483843366,-500.0,9.504e-05,2]
[347048537,1735483843375,-500.0,9.504e-05,2]
[347048539,1735483843385,-500.0,9.504e-05,2]
[347048541,1735483843394,-500.0,9.504e-05,2]
[347048543,1735483843404,-500.0,9.504e-05,2]
[347048545,1735483843414,-183.68754398,9.504e-05,2]
[347048547,1735483843423,-500.0,9.504e-05,2]
[347048549,1735483843432,-500.0,9.504e-05,2]
[347048551,1735483843443,-500.0,9.504e-05,2]
[347048553,1735483843452,-500.0,9.504e-05,2]
[347048555,1735483843461,-500.0,9.504e-05,2]
[347048557,1735483843470,-500.0,9.504e-05,2]
[347048559,1735483843481,-500.0,9.504e-05,2]
[347048561,1735483843490,-501.33202148,9.504e-05,2]
[347048563,1735483843500,-869.51,9.504e-05,2]
[347048565,1735483843509,-505.84697742,9.504e-05,2]
[347048567,1735483843518,-503.35707306,9.504e-05,2]
[347048569,1735483843528,-500.0,9.504e-05,2]
[347048571,1735483843537,-504.51332475,9.504e-05,2]
[347048573,1735483843546,-500.0,9.504e-05,2]
[347048575,1735483843555,-500.0,9.504e-05,2]
[347048577,1735483843565,-620.17704671,9.504e-05,2]
[347048579,1735483843574,-500.0,9.504e-05,2]
[347048581,1735483843583,-500.0,9.504e-05,2]
[347048583,1735483843592,-500.0,9.504e-05,2]
[347048585,1735483843601,-509.93077672,9.504e-05,2]
[347048587,1735483843610,-500.0,9.504e-05,2]
[347048589,1735483843620,-500.0,9.504e-05,2]
[347048591,1735483843629,-500.0,9.504e-05,2]
[347048593,1735483843638,-500.0,9.504e-05,2]
[347048595,1735483843648,-500.0,9.504e-05,2]
[347048597,1735483843657,-551.92103526,9.504e-05,2]
[347048599,1735483843667,-500.0,9.504e-05,2]
[347048601,1735483843676,-592.78,9.504e-05,2]
[347048603,1735483843686,-500.0,9.504e-05,2]
[347048605,1735483843695,-500.0,9.504e-05,2]
[347048607,1735483843705,-500.0,9.504e-05,2]
[347048609,1735483843715,-500.0,9.504e-05,2]
[347048611,1735483843724,-528.83,9.504e-05,2]
[347048613,1735483843735,-589.85736541,9.504e-05,2]
[347048615,1735483843744,-500.0,9.504e-05,2]
[347048617,1735483843754,-500.0,9.504e-05,2]
[347048619,1735483843763,-500.0,9.504e-05,2]
[347048621,1735483843772,-500.0,9.504e-05,2]
[347048623,1735483843782,-500.0,9.504e-05,2]
[347048625,1735483843791,-500.0,9.504e-05,2]
[347048627,1735483843801,-500.0,9.504e-05,2]
[347048629,1735483843810,-500.0,9.504e-05,2]
[347048631,1735483843820,-500.0,9.504e-05,2]
[347048633,1735483843829,-500.0,9.504e-05,2]
[347048635,1735483843839,-505.96426997,9.504e-05,2]
[347048637,1735483843849,-500.0,9.504e-05,2]
[347048639,1735483843858,-500.0,9.504e-05,2]
[347048641,1735483843868,-500.62390831,9.504e-05,2]
[347048643,1735483843878,-500.0,9.504e-05,2]
[347048645,1735483843887,-500.0,9.504e-05,2]
[347048647,1735483843897,-500.0,9.504e-05,2]
[347048649,1735483843906,-500.0,9.504e-05,2]
[347048651,1735483843916,-500.0,9.504e-05,2]
[347048653,1735483843925,-503.1594371,9.504e-05,2]
[347048655,1735483843935,-500.0,9.504e-05,2]
[347048657,1735483843944,-502.88698765,9.504e-05,2]
[347048659,1735483843953,-500.0,9.504e-05,2]
[347048661,1735483843963,-500.0,9.504e-05,2]
[347048663,1735483843972,-841.36,9.504e-05,2]
[347048665,1735483843984,-188.0,9.504e-05,2]
[347048667,1735483843995,-502.75300397,9.504e-05,2]
[347048669,1735483844006,-500.0,9.504e-05,2]
[347048671,1735483844015,-500.0,9.504e-05,2]
[347048673,1735483844025,-500.0,9.504e-05,2]
[347048675,1735483844035,-505.97691891,9.504e-05,2]
[347048678,1735483844046,-502.80457149,9.504e-05,2]
[347048680,1735483844057,-514.38151383,9.504e-05,2]
[347048682,1735483844067,-500.0,9.504e-05,2]
[347048684,1735483844076,-500.0,9.504e-05,2]
[347048686,1735483844086,-530.40897516,9.504e-05,2]
[347048688,1735483844096,-500.0,9.504e-05,2]
[347048690,1735483844105,-500.0,9.504e-05,2]
[347048692,1735483844114,-500.0,9.504e-05,2]
[347048694,1735483844124,-500.0,9.504e-05,2]
[347048696,1735483844134,-500.0,9.504e-05,2]
[347048698,1735483844143,-500.0,9.504e-05,2]
[347048700,1735483844152,-500.0,9.504e-05,2]
[347048702,1735483844162,-616.16212179,9.504e-05,2]
[347048704,1735483844171,-502.25138844,9.504e-05,2]
[347048706,1735483844182,-500.42066067,9.504e-05,2]
[347048708,1735483844191,-500.0,9.504e-05,2]
[347048710,1735483844199,-500.0,9.504e-05,2]
[347048712,1735483844209,-500.0,9.504e-05,2]
[347048714,1735483844218,-505.37058005,9.504e-05,2]
[347048716,1735483844228,-500.0,9.504e-05,2]
[347048718,1735483844237,-500.0,9.504e-05,2]
[347048720,1735483844246,-500.27382946,9.504e-05,2]
[347048722,1735483844255,-500.0,9.504e-05,2]
[347048724,1735483844264,-500.0,9.504e-05,2]
[347048726,1735483844273,-503.47725766,9.504e-05,2]
[347048728,1735483844283,-500.0,9.504e-05,2]
[347048730,1735483844292,-258.78582848,9.505e-05,2]
[347048732,1735483844301,-516.51065407,9.505e-05,2]
[347048734,1735483844310,-311.45898693,9.505e-05,2]
[347048736,1735483844320,-500.0,9.505e-05,2]
[347048738,1735483844329,-1892.61,9.505e-05,2]
[347048740,1735483844338,-500.0,9.505e-05,2]
[347048742,1735483844347,-755.48,9.505e-05,2]
[347048744,1735483844357,-642.14,9.505e-05,2]
[347048746,1735483844370,-507.64432595,9.505e-05,2]
[347048748,1735483844380,-500.0,9.505e-05,2]
[347048750,1735483844389,-500.0,9.505e-05,2]
[347048752,1735483844398,-500.0,9.505e-05,2]
[347048754,1735483844407,-500.0,9.505e-05,2]
[347048756,1735483844417,-500.0,9.505e-05,2]
[347048758,1735483844426,-682.73,9.505e-05,2]
[347048760,1735483844435,-500.0,9.505e-05,2]
[347048762,1735483844445,-500.0,9.505e-05,2]
[347048764,1735483844454,-500.0,9.505e-05,2]
[347048766,1735483844463,-500.0,9.505e-05,2]
[347048768,1735483844472,-500.0,9.505e-05,2]
[347048770,1735483844482,-500.0,9.505e-05,2]
[347048772,1735483844491,-500.0,9.505e-05,2]
[347048774,1735483844500,-500.0,9.505e-05,2]
[347048776,1735483844509,-500.0,9.505e-05,2]
[347048778,1735483844518,-500.0,9.505e-05,2]
[347048780,1735483844528,-500.0,9.505e-05,2]
[347048782,1735483844537,-844.38,9.507e-05,2]
[347048784,1735483844547,-500.0,9.508e-05,2]
[347048786,1735483844556,-634.2945631,9.508e-05,2]
[347048795,1735483844623,-500.0,9.508e-05,2]
[347048797,1735483844633,-500.0,9.508e-05,2]
[347048799,1735483844643,-500.0,9.508e-05,2]
[347048801,1735483844652,-551.29,9.508e-05,2]
[347048803,1735483844661,-500.0,9.508e-05,2]
[347048805,1735483844670,-438.60755488,9.508e-05,2]
[347048807,1735483844680,-500.0,9.508e-05,2]
[347048809,1735483844689,-500.0,9.508e-05,2]
[347048811,1735483844699,-500.0,9.508e-05,2]
[347048813,1735483844708,-501.93834413,9.508e-05,2]
[347048815,1735483844717,-844.38,9.509e-05,2]
[347048817,1735483844726,-500.0,9.51e-05,2]
[347048819,1735483844737,-505.04623925,9.51e-05,2]
[347048821,1735483844747,-3602.44,9.51e-05,2]
[347048823,1735483844756,-155.30302095,9.511e-05,2]
[347048826,1735483844770,-689.07697905,9.511e-05,2]
[347048828,1735483844780,-731.64,9.512e-05,2]
[347048830,1735483844789,-500.0,9.512e-05,2]
[347048832,1735483844798,-500.0,9.512e-05,2]
[347048834,1735483844807,-844.38,9.513e-05,2]
[347048836,1735483844817,-844.38,9.513e-05,2]
[347048838,1735483844826,-844.38,9.513e-05,2]
[347048840,1735483844835,-500.0,9.513e-05,2]
[347048842,1735483844844,-844.38,9.514e-05,2]
[347048844,1735483844853,-4484.2,9.514e-05,2]